bitfinex/quotes_BTCUSD_20250610
["timestamp","ask_amount","ask_price","bid_price","bid_amount"]
[1749521806691,2.07111793,109590.0,109580.0,0.006]
[1749521806904,2.45471793,109590.0,109580.0,0.006]
[1749521807104,2.47749387,109590.0,109580.0,0.006]
[1749521808632,2.45038018,109590.0,109580.0,0.006]
[1749521811607,2.50038018,109590.0,109580.0,0.006]
[1749521813517,2.11678018,109590.0,109580.0,0.006]
[1749521813742,2.50042018,109590.0,109580.0,0.006]
[1749521815556,2.11678018,109590.0,109580.0,0.006]
[1749521815805,2.50042018,109590.0,109580.0,0.006]
[1749521817133,2.11678018,109590.0,109580.0,0.006]
[1749521817346,0.37926591,109590.0,109580.0,0.006]
[1749521817557,1.27877775,109590.0,109580.0,0.006]
[1749521818227,0.34108997,109590.0,109580.0,0.006]
[1749521818438,0.87973775,109590.0,109580.0,0.006]
[1749521818652,1.26337775,109590.0,109580.0,0.006]
[1749521819747,1.28615369,109590.0,109580.0,0.006]
[1749521819951,1.30255369,109590.0,109580.0,0.006]
[1749521820605,1.30255369,109590.0,109580.0,0.004]
[1749521820606,1.87190147,109590.0,109580.0,0.004]
[1749521821023,1.87190147,109590.0,109580.0,0.007]
[1749521821227,0.76380591,109590.0,109580.0,0.007]
[1749521821431,1.87190147,109590.0,109580.0,0.007]
[1749521822072,1.87190147,109590.0,109580.0,0.005]
[1749521822276,1.87190147,109590.0,109580.0,0.005259]
[1749521822492,1.87190147,109590.0,109580.0,0.008259]
[1749521823371,0.76380591,109590.0,109580.0,0.008259]
[1749521823577,1.31785369,109590.0,109580.0,0.008259]
[1749521824017,1.30255369,109590.0,109580.0,0.008259]
[1749521824697,1.28615369,109590.0,109580.0,0.008259]
[1749521825531,0.99495369,109590.0,109580.0,0.008259]
[1749521825781,1.28615369,109590.0,109580.0,0.008259]
[1749521826389,1.28615369,109590.0,109580.0,0.041059]
[1749521826390,0.70932997,109590.0,109580.0,0.041059]
[1749521827064,1.26337775,109590.0,109580.0,0.041059]
[1749521827472,1.28615369,109590.0,109580.0,0.041059]
[1749521828806,0.73210591,109590.0,109580.0,0.041059]
[1749521829010,1.28615369,109590.0,109580.0,0.041059]
[1749521829670,0.73210591,109590.0,109580.0,0.041059]
[1749521829874,1.28615369,109590.0,109580.0,0.041059]
[1749521830531,1.28611369,109590.0,109580.0,0.008259]
[1749521830999,1.30171369,109590.0,109580.0,0.008259]
[1749521831206,1.31781369,109590.0,109580.0,0.008259]
[1749521831620,1.87186147,109590.0,109580.0,0.008259]
[1749521831828,1.31781369,109590.0,109580.0,0.008259]
[1749521832330,1.87186147,109590.0,109580.0,0.008259]
[1749521834342,1.28607369,109590.0,109580.0,0.008259]
[1749521835039,0.87973775,109590.0,109580.0,0.008259]
[1749521835250,1.28607369,109590.0,109580.0,0.008259]
[1749521837705,0.90251369,109590.0,109580.0,0.008259]
[1749521837926,1.28603369,109590.0,109580.0,0.008259]
[1749521839999,1.31853369,109590.0,109580.0,0.008259]
[1749521840411,1.87258147,109590.0,109580.0,0.008259]
[1749521841961,1.31853369,109590.0,109580.0,0.008259]
[1749521848489,1.02741369,109590.0,109580.0,0.008259]
[1749521848706,1.30243369,109590.0,109580.0,0.008259]
[1749521849134,1.31883369,109590.0,109580.0,0.008259]
[1749521849345,0.47366591,109590.0,109580.0,0.008259]
[1749521849527,1.31879369,109590.0,109580.0,0.008259]
[1749521853055,0.76474591,109590.0,109580.0,0.008259]
[1749521853289,1.31879369,109590.0,109580.0,0.008259]
[1749521855283,0.76474591,109590.0,109580.0,0.008259]
[1749521855529,1.31879369,109590.0,109580.0,0.008259]
[1749521855775,0.76474591,109590.0,109580.0,0.008259]
[1749521856017,1.31879369,109590.0,109580.0,0.008259]
[1749521857549,1.28599369,109590.0,109580.0,0.008259]
[1749521857978,0.90251369,109590.0,109580.0,0.008259]
[1749521858192,1.28599369,109590.0,109580.0,0.008259]
[1749521858967,1.30099369,109590.0,109580.0,0.008259]
[1749521860120,1.31639369,109590.0,109580.0,0.008259]
[1749521862451,0.93291369,109590.0,109580.0,0.008259]
[1749521862587,0.34846591,109590.0,109580.0,0.008259]
[1749521862799,0.52493211,109590.0,109580.0,0.039659]
[1749521863005,0.23389211,109590.0,109580.0,0.66632513]
[1749521863213,0.52493211,109590.0,109580.0,0.54856162]
[1749521863432,0.54770805,109590.0,109580.0,0.47594327]
[1749521863636,0.54770805,109590.0,109580.0,1.02999105]
[1749521863842,0.54770805,109590.0,109580.0,0.62999105]
[1749521864043,0.54770805,109590.0,109580.0,0.62699105]
[1749521864244,0.23389211,109590.0,109580.0,0.62699105]
[1749521864452,0.25666805,109590.0,109580.0,0.52545686]
[1749521864658,0.54770805,109590.0,109580.0,1.07950464]
[1749521864861,0.54770805,109590.0,109580.0,1.08350464]
[1749521865085,0.54770805,109590.0,109580.0,1.08750464]
[1749521865401,0.52493211,109590.0,109580.0,1.08750464]
[1749521865627,0.54770805,109590.0,109580.0,1.12378891]
[1749521865972,0.54770805,109590.0,109580.0,1.1320091]
[1749521866282,0.52493211,109590.0,109580.0,1.1320091]
[1749521866500,0.54770805,109590.0,109580.0,1.1320091]
[1749521866708,0.52493211,109590.0,109580.0,1.1320091]
[1749521867329,0.52493211,109590.0,109580.0,1.09572483]
[1749521868390,0.54770805,109590.0,109580.0,1.09572483]
[1749521869462,0.52493211,109590.0,109580.0,1.09572483]
[1749521869685,0.54766805,109590.0,109580.0,1.09572483]
[1749521870108,0.25666805,109590.0,109580.0,1.09572483]
[1749521870315,0.54766805,109590.0,109580.0,1.09572483]
[1749521870749,0.54766805,109590.0,109580.0,0.54167705]
[1749521873988,0.54766805,109590.0,109580.0,0.14167705]
[1749521874397,0.54766805,109590.0,109580.0,0.54167705]
[1749521875236,0.52489211,109590.0,109580.0,0.54167705]
[1749521875472,0.54766805,109590.0,109580.0,0.54167705]
[1749521879172,0.52489211,109590.0,109580.0,0.54167705]
[1749521879435,0.52489211,109590.0,109580.0,0.14167705]
[1749521879436,0.54766805,109590.0,109580.0,0.14167705]
[1749521879849,0.54766805,109590.0,109580.0,0.54167705]
[1749521880060,0.52489211,109590.0,109580.0,0.54167705]
[1749521880305,0.54766805,109590.0,109580.0,0.54167705]
[1749521880766,0.54766805,109590.0,109580.0,0.41847919]
[1749521880992,1.11821583,109590.0,109580.0,0.010259]
[1749521881242,1.13451583,109590.0,109580.0,0.010259]
[1749521881451,0.58046805,109590.0,109580.0,0.010259]
[1749521881865,0.56416805,109590.0,109580.0,0.010259]
[1749521882304,0.27316805,109590.0,109580.0,0.010259]
[1749521882511,0.54754805,109590.0,109580.0,0.010259]
[1749521882936,0.54754805,109590.0,109580.0,0.01843505]
[1749521884076,0.56394805,109590.0,109580.0,0.010259]
[1749521886199,0.27306805,109590.0,109580.0,0.01860657]
[1749521886430,0.27306805,109590.0,109580.0,0.05000657]
[1749521886431,0.54754805,109590.0,109580.0,0.05000657]
[1749521886651,0.54754805,109590.0,109580.0,0.60405435]
[1749521886652,0.52477211,109590.0,109580.0,0.60405435]
[1749521886883,0.54754805,109590.0,109580.0,0.60405435]
[1749521887370,0.23389211,109590.0,109580.0,0.60405435]
[1749521887609,0.19162315,109590.0,109580.0,0.60405435]
[1749521887806,0.23389211,109590.0,109580.0,0.60405435]
[1749521888056,0.25666805,109590.0,109580.0,0.60405435]
[1749521888274,0.23389211,109590.0,109580.0,0.60405435]
[1749521888499,0.25666805,109590.0,109580.0,0.05000657]
[1749521890476,0.25666805,109590.0,109580.0,0.45000657]
[1749521890694,0.23389211,109590.0,109580.0,0.45000657]
[1749521891365,0.23389211,109590.0,109580.0,0.48629084]
[1749521893373,0.23389211,109590.0,109580.0,0.08629084]
[1749521893803,0.23389211,109590.0,109580.0,0.48629084]
[1749521896862,0.23389211,109590.0,109580.0,0.08629084]
[1749521897074,0.25666805,109590.0,109580.0,0.08629084]
[1749521897324,0.25666805,109590.0,109580.0,0.48629084]
[1749521897567,0.25666805,109590.0,109580.0,0.47119084]
[1749521899132,0.25666805,109590.0,109580.0,0.45489084]
[1749521899353,0.25666805,109590.0,109580.0,0.41860657]
[1749521899829,0.23389211,109590.0,109580.0,0.41860657]
[1749521900042,0.25666805,109590.0,109580.0,0.41860657]
[1749521900476,0.25666805,109590.0,109580.0,0.01860657]
[1749521900903,0.25666805,109590.0,109580.0,0.41860657]
[1749521901565,0.23389211,109590.0,109580.0,0.45489084]
[1749521902032,0.25666805,109590.0,109580.0,0.45489084]
[1749521902257,0.23389211,109590.0,109580.0,0.45489084]
[1749521902526,0.25666805,109590.0,109580.0,0.45489084]
[1749521903916,0.25666805,109590.0,109580.0,0.01860657]
[1749521904340,0.25666805,109590.0,109580.0,0.45489084]
[1749521906261,0.23389211,109590.0,109580.0,0.45489084]
[1749521906473,0.25666805,109590.0,109580.0,0.45489084]
[1749521907301,0.54738805,109590.0,109580.0,0.05489084]
[1749521907792,0.54738805,109590.0,109580.0,0.45489084]
[1749521909052,0.52461211,109590.0,109580.0,0.45489084]
[1749521909262,0.54738805,109590.0,109580.0,0.45489084]
[1749521909467,0.52461211,109590.0,109580.0,0.45489084]
[1749521909686,0.54738805,109590.0,109580.0,0.45489084]
[1749521910831,0.54738805,109590.0,109580.0,0.05489084]
[1749521911289,0.52461211,109590.0,109580.0,0.05489084]
[1749521911510,0.54738805,109590.0,109580.0,0.45489084]
[1749521914405,0.54738805,109590.0,109580.0,0.05489084]
[1749521914871,0.54738805,109590.0,109580.0,0.45489084]
[1749521915305,1.13233583,109590.0,109580.0,0.010259]
[1749521915527,1.22457583,109590.0,109580.0,0.010259]
[1749521915742,1.77862361,109590.0,109580.0,0.010259]
[1749521916174,1.22457583,109590.0,109580.0,0.010259]
[1749521917058,1.77862361,109590.0,109580.0,0.010259]
[1749521917274,1.74772361,109590.0,109580.0,0.010259]
[1749521917490,1.19367583,109590.0,109580.0,0.010259]
[1749521917975,0.63962805,109590.0,109580.0,0.010259]
[1749521918409,1.19367583,109590.0,109580.0,0.010259]
[1749521927492,1.74772361,109590.0,109580.0,0.010259]
[1749521927709,2.38162339,109590.0,109580.0,0.010259]
[1749521927960,0.24305324,109570.0,109560.0,0.004635]
[1749521928201,1.8484426,109570.0,109560.0,0.004635]
[1749521928845,1.95478131,109570.0,109560.0,0.004635]
[1749521929743,1.86298345,109570.0,109560.0,0.005635]
[1749521929957,1.86298345,109570.0,109560.0,0.004635]
[1749521930824,1.89015072,109570.0,109560.0,0.004635]
[1749521931033,1.89215072,109570.0,109560.0,0.004635]
[1749521931256,0.78405516,109570.0,109560.0,0.004635]
[1749521931471,1.98394858,109570.0,109560.0,0.004635]
[1749521938488,1.29639482,109570.0,109560.0,0.004635]
[1749521940963,0.74234704,109570.0,109560.0,0.004635]
[1749521941180,1.29639482,109570.0,109560.0,0.004635]
[1749521941626,1.8504426,109570.0,109560.0,0.004635]
[1749521941841,0.74234704,109570.0,109560.0,0.004635]
[1749521942056,1.94224046,109570.0,109560.0,0.004635]
[1749521942488,1.8504426,109570.0,109560.0,0.004635]
[1749521943153,1.86498345,109570.0,109560.0,0.004635]
[1749521943394,0.2430899,109550.0,109540.0,0.002]
[1749521943600,1.76763148,109550.0,109540.0,0.002]
[1749521944739,1.7677199,109550.0,109540.0,0.002]
[1749521944956,1.21367212,109550.0,109540.0,0.002]
[1749521945179,1.7677199,109550.0,109540.0,0.002]
[1749521945871,1.77623985,109550.0,109540.0,0.002]
[1749521946086,1.77623985,109550.0,109540.0,0.003]
[1749521946315,1.86803771,109550.0,109540.0,0.003]
[1749521946533,1.86803771,109550.0,109540.0,0.002]
[1749521946963,0.84047207,109550.0,109540.0,0.002]
[1749521947172,1.77895985,109550.0,109540.0,0.002]
[1749521947601,1.39451985,109550.0,109540.0,0.002]
[1749521947807,1.77959985,109550.0,109540.0,0.002]
[1749521948020,1.41001985,109550.0,109540.0,0.002]
[1749521948232,1.24105207,109550.0,109540.0,0.002]
[1749521948503,1.79509985,109550.0,109540.0,0.002]
[1749521948700,1.77232391,109550.0,109540.0,0.002]
[1749521948915,1.42621985,109550.0,109540.0,0.002]
[1749521949128,1.81129985,109550.0,109540.0,0.002]
[1749521949365,0.90133618,109550.0,109540.0,0.002]
[1749521949589,1.19437618,109550.0,109540.0,0.0178]
[1749521949807,1.19437618,109550.0,109540.0,0.02754467]
[1749521949808,1.7711999,109550.0,109540.0,0.02754467]
[1749521950228,1.7711999,109550.0,109540.0,0.002]
[1749521950436,1.21615212,109550.0,109540.0,0.0190293]
[1749521950656,1.21615212,109550.0,109540.0,0.02754395]
[1749521951094,1.7860999,109550.0,109540.0,0.02854395]
[1749521951303,1.8017999,109550.0,109540.0,0.01151465]
[1749521951515,1.8017999,109550.0,109540.0,0.01151665]
[1749521951730,1.8017999,109550.0,109540.0,0.01151674]
[1749521952616,1.24775212,109550.0,109540.0,0.01151674]
[1749521952828,1.8017999,109550.0,109540.0,0.003]
[1749521953044,1.8017999,109550.0,109540.0,0.0285653]
[1749521953273,1.8017999,109550.0,109540.0,0.02857408]
[1749521953509,1.24775212,109550.0,109540.0,0.02857408]
[1749521953724,1.8017999,109550.0,109540.0,0.02857656]
[1749521953934,1.8017999,109550.0,109540.0,0.02005104]
[1749521954146,1.8017999,109550.0,109540.0,0.02857656]
[1749521955431,1.8017999,109550.0,109540.0,0.003]
[1749521955656,1.8017999,109550.0,109540.0,0.02857684]
[1749521955908,1.8017999,109550.0,109540.0,0.01152583]
[1749521956152,1.83749685,109550.0,109540.0,0.01152622]
[1749521956379,1.83749685,109550.0,109540.0,0.01154114]
[1749521956637,2.36876869,109550.0,109540.0,0.003]
[1749521956878,1.34773349,109550.0,109540.0,0.002]
[1749521957111,2.45582905,109550.0,109540.0,0.002]
[1749521957318,2.4831337,109550.0,109540.0,0.002]
[1749521958202,2.42871722,109550.0,109540.0,0.002]
[1749521960631,2.52871722,109550.0,109540.0,0.002]
[1749521961236,2.47871722,109550.0,109540.0,0.002]
[1749521961477,1.42062166,109550.0,109540.0,0.002]
[1749521961688,2.47871722,109550.0,109540.0,0.002]
[1749521961900,1.39946556,109550.0,109540.0,0.002]
[1749521962111,1.95351334,109550.0,109540.0,0.002]
[1749521962334,1.93063631,109550.0,109540.0,0.002]
[1749521962538,2.53468409,109550.0,109540.0,0.002]
[1749521962744,1.42658853,109550.0,109540.0,0.002]
[1749521962957,2.62648195,109550.0,109540.0,0.002]
[1749521963177,1.00769546,109550.0,109540.0,0.002]
[1749521963397,0.45227212,109550.0,109540.0,0.002]
[1749521963613,0.72665618,109550.0,109540.0,0.01905396]
[1749521963823,1.3034799,109550.0,109540.0,0.01905396]
[1749521964029,1.28070396,109550.0,109540.0,0.0275821]
[1749521964251,1.3036399,109550.0,109540.0,0.02758197]
[1749521964672,1.28082396,109550.0,109540.0,0.0190549]
[1749521964969,1.3035999,109550.0,109540.0,0.0190549]
[1749521965619,0.9127999,109550.0,109540.0,0.0190549]
[1749521965830,1.3033999,109550.0,109540.0,0.0190549]
[1749521966049,0.33597618,109550.0,109540.0,0.01905723]
[1749521966267,0.33597618,109550.0,109540.0,0.05135723]
[1749521966268,0.24417832,109550.0,109540.0,0.05135723]
[1749521966485,0.63469832,109550.0,109540.0,0.0577532]
[1749521966906,0.63469832,109550.0,109540.0,0.0577526]
[1749521967121,0.65747426,109550.0,109540.0,0.0577526]
[1749521967993,0.63469832,109550.0,109540.0,0.05774846]
[1749521968210,0.65747426,109550.0,109540.0,0.01905203]
[1749521968425,1.3191199,109550.0,109540.0,0.01905203]
[1749521968880,1.3191199,109550.0,109540.0,0.02758017]
[1749521969087,1.3191199,109550.0,109540.0,0.01905381]
[1749521969295,1.3191199,109550.0,109540.0,0.02758177]
[1749521969506,1.3191199,109550.0,109540.0,0.02758372]
[1749521969737,0.9127999,109550.0,109540.0,0.01905552]
[1749521969950,1.3034399,109550.0,109540.0,0.01905552]
[1749521970170,1.3034399,109550.0,109540.0,0.0275843]
[1749521970591,1.3032799,109550.0,109540.0,0.01905751]
[1749521970800,1.3032799,109550.0,109540.0,0.01905942]
[1749521971022,1.3032799,109550.0,109540.0,0.0190593]
[1749521971504,0.74923212,109550.0,109540.0,0.0190593]
[1749521971940,0.74923212,109550.0,109540.0,0.002]
[1749521972374,0.74923212,109550.0,109540.0,0.01906009]
[1749521972823,0.74923212,109550.0,109540.0,0.002]
[1749521973042,0.74923212,109550.0,109540.0,0.01906013]
[1749521973918,0.74923212,109550.0,109540.0,0.01905877]
[1749521974364,0.75011212,109550.0,109540.0,0.01905879]
[1749521974581,0.75011212,109550.0,109540.0,0.002]
[1749521974801,0.75011212,109550.0,109540.0,0.0190588]
[1749521975708,1.26958568,109550.0,109540.0,0.01906041]
[1749521975931,1.26958568,109550.0,109540.0,0.01906033]
[1749521976163,1.26958568,109550.0,109540.0,0.01906022]
[1749521976376,1.26958568,109550.0,109540.0,0.01906005]
[1749521976597,1.26958568,109550.0,109540.0,0.01906004]
[1749521976812,1.26958568,109550.0,109540.0,0.01906023]
[1749521977695,1.37728354,109550.0,109540.0,0.002]
[1749521977914,1.3545076,109550.0,109540.0,0.002]
[1749521978142,1.39182439,109550.0,109540.0,0.002]
[1749521978571,0.88765083,109550.0,109540.0,0.002]
[1749521978802,1.39182439,109550.0,109540.0,0.002]
[1749521979061,0.88765083,109550.0,109540.0,0.002]
[1749521979268,1.39182439,109550.0,109540.0,0.002]
[1749521985974,1.86514439,109550.0,109540.0,0.002]
[1749521987690,1.36097083,109550.0,109540.0,0.002]
[1749521987903,1.86514439,109550.0,109540.0,0.002]
[1749521990415,1.86818439,109550.0,109540.0,0.002]
[1749521990850,1.84540845,109550.0,109540.0,0.002]
[1749521991068,1.86818439,109550.0,109540.0,0.002]
[1749521991968,1.36401083,109550.0,109540.0,0.002]
[1749521992178,1.86818439,109550.0,109540.0,0.002]
[1749521992624,1.73894974,109550.0,109540.0,0.002]
[1749521992840,1.76172568,109550.0,109540.0,0.002]
[1749521993266,1.73894974,109550.0,109540.0,0.002]
[1749521993479,1.76172568,109550.0,109540.0,0.002]
[1749521993896,1.31346974,109550.0,109540.0,0.002]
[1749521994106,1.73028568,109550.0,109540.0,0.002]
[1749521994594,1.74668568,109550.0,109540.0,0.002]
[1749521995477,1.7972283,109550.0,109540.0,0.002]
[1749521996791,1.25801212,109550.0,109540.0,0.002]
[1749521997021,1.8127283,109550.0,109540.0,0.002]
[1749521997231,1.23523618,109550.0,109540.0,0.002]
[1749521997438,1.8127283,109550.0,109540.0,0.002]
[1749521997865,1.7972283,109550.0,109540.0,0.002]
[1749521998284,1.8131283,109550.0,109540.0,0.002]
[1749522002320,1.84025127,109550.0,109540.0,0.002]
[1749522003444,1.28553509,109550.0,109540.0,0.002]
[1749522003671,1.8131283,109550.0,109540.0,0.002]
[1749522004976,1.25841212,109550.0,109540.0,0.002]
[1749522005192,1.8131283,109550.0,109540.0,0.002]
[1749522005641,1.38041236,109550.0,109540.0,0.002]
[1749522005872,0.90553618,109550.0,109540.0,0.04988935]
[1749522006090,1.7798683,109550.0,109540.0,0.05843386]
[1749522006520,0.83207212,109550.0,109540.0,0.05843386]
[1749522006762,1.7797483,109550.0,109540.0,0.0328]
[1749522006950,1.7797083,109550.0,109540.0,0.04775233]
[1749522007175,1.3867883,109550.0,109540.0,0.06484071]
[1749522007392,1.7797883,109550.0,109540.0,0.05629652]
[1749522007623,1.22507212,109550.0,109540.0,0.04988838]
[1749522007834,1.7799483,109550.0,109540.0,0.04988838]
[1749522008709,1.7799483,109550.0,109540.0,0.0328]
[1749522008918,1.7799483,109550.0,109540.0,0.04988882]
[1749522009132,1.7799483,109550.0,109540.0,0.03448882]
[1749522009360,1.22523212,109550.0,109540.0,0.01908882]
[1749522009580,1.7799483,109550.0,109540.0,0.01908882]
[1749522009833,1.7799483,109550.0,109540.0,0.01908462]
[1749522010260,1.7799483,109550.0,109540.0,0.01908416]
[1749522010696,1.7799483,109550.0,109540.0,0.01908417]
[1749522011984,1.7799483,109550.0,109540.0,0.002]
[1749522012190,1.7799483,109550.0,109540.0,0.01908132]
[1749522012625,1.24153212,109550.0,109540.0,0.01908132]
[1749522012832,1.7962483,109550.0,109540.0,0.01908132]
[1749522013041,1.7799483,109550.0,109540.0,0.01908132]
[1749522013263,1.7962483,109550.0,109540.0,0.01908132]
[1749522013478,1.7962483,109550.0,109540.0,0.0190798]
[1749522013918,1.7799483,109550.0,109540.0,0.0190798]
[1749522014782,0.24417832,109550.0,109540.0,0.0509798]
[1749522015055,0.54341832,109550.0,109540.0,0.05097883]
[1749522015267,0.54349832,109550.0,109540.0,0.05097883]
[1749522015482,0.54349832,109550.0,109540.0,0.0339]
[1749522015694,0.54349832,109550.0,109540.0,0.12359447]
[1749522016140,0.54349832,109550.0,109540.0,0.05097612]
[1749522016367,0.56627426,109550.0,109540.0,0.05097612]
[1749522016786,0.56627426,109550.0,109540.0,0.0509678]
[1749522016998,0.56627426,109550.0,109540.0,0.0339]
[1749522017416,0.56627426,109550.0,109540.0,0.05096778]
[1749522017837,0.54349832,109550.0,109540.0,0.05096778]
[1749522018265,0.24417832,109550.0,109540.0,0.05096776]
[1749522018482,0.54361832,109550.0,109540.0,0.05096734]
[1749522018909,0.54361832,109550.0,109540.0,0.45096779]
[1749522019533,0.24417832,109550.0,109540.0,1.01446978]
[1749522019750,0.50126936,109550.0,109540.0,0.99740199]
[1749522019958,0.20190936,109550.0,109540.0,1.10626135]
[1749522021628,0.20190936,109550.0,109540.0,1.10625338]
[1749522022032,0.20190936,109550.0,109540.0,1.08919985]
[1749522022260,0.20190936,109550.0,109540.0,1.10625394]
[1749522023125,0.20190936,109550.0,109540.0,1.10624642]
[1749522023543,0.20190936,109550.0,109540.0,0.55153024]
[1749522023751,0.2246853,109550.0,109540.0,0.55153033]
[1749522024165,0.20190936,109550.0,109540.0,0.55153033]
[1749522024594,0.20190936,109550.0,109540.0,0.53448367]
[1749522024814,0.20190936,109550.0,109540.0,0.55152665]
[1749522025028,0.20190936,109550.0,109540.0,0.53448367]
[1749522025471,0.20190936,109550.0,109540.0,0.55152665]
[1749522026352,0.20190936,109550.0,109540.0,1.10624283]
[1749522026578,0.20190936,109550.0,109540.0,1.10623984]
[1749522026788,0.20190936,109550.0,109540.0,1.10623983]
[1749522028055,0.20190936,109550.0,109540.0,1.1062387]
[1749522028261,0.20190936,109550.0,109540.0,1.08919985]
[1749522028485,0.20190936,109550.0,109540.0,1.10623846]
[1749522028696,0.20190936,109550.0,109540.0,1.40487846]
[1749522029350,0.20090936,109550.0,109540.0,1.40487846]
[1749522029566,0.20090936,109550.0,109540.0,6.43783985]
[1749522029789,0.20090936,109550.0,109540.0,6.43983985]
[1749522030009,0.20090936,109550.0,109540.0,6.49316159]
[1749522030255,0.20090936,109550.0,109540.0,6.49316155]
[1749522030669,0.20090936,109550.0,109540.0,5.93844537]
[1749522030868,0.20090936,109550.0,109540.0,6.49316155]
[1749522031288,0.20090936,109550.0,109540.0,6.49283836]
[1749522031497,0.20090936,109550.0,109540.0,6.49483836]
[1749522031702,0.20090936,109550.0,109540.0,6.49479837]
[1749522031908,0.20090936,109550.0,109540.0,5.96683246]
[1749522032124,0.20090936,109550.0,109540.0,6.48522437]
[1749522032342,0.20090936,109550.0,109540.0,6.52150864]
[1749522032984,0.20090936,109550.0,109540.0,6.52151539]
[1749522033186,0.20090936,109550.0,109540.0,6.50447439]
[1749522033403,0.20090936,109550.0,109540.0,6.20623439]
[1749522033618,0.20090936,109550.0,109540.0,6.48503133]
[1749522033840,0.20090936,109550.0,109540.0,6.46799012]
[1749522034057,0.20090936,109550.0,109540.0,6.48503136]
[1749522034264,0.20090936,109550.0,109540.0,5.93031518]
[1749522034471,0.20090936,109550.0,109540.0,5.96659922]
[1749522034682,0.20090936,109550.0,109540.0,5.94955821]
[1749522034906,0.20090936,109550.0,109540.0,0.56523394]
[1749522035116,0.20090936,109550.0,109540.0,0.5822849]
[1749522035775,0.20090936,109550.0,109540.0,0.5822847]
[1749522036190,0.20090936,109550.0,109540.0,0.56523394]
[1749522036403,0.20090936,109550.0,109540.0,0.58228467]
[1749522036623,0.20090936,109550.0,109540.0,0.58228468]
[1749522037944,0.20090936,109550.0,109540.0,0.58228749]
[1749522038149,0.20090936,109550.0,109540.0,0.48000749]
[1749522038583,0.20090936,109550.0,109540.0,0.84806747]
[1749522038999,0.20090936,109550.0,109540.0,0.8480675]
[1749522039203,0.20090936,109550.0,109540.0,0.8642675]
[1749522039434,0.20090936,109550.0,109540.0,0.84721394]
[1749522039853,0.20090936,109550.0,109540.0,0.86427183]
[1749522040062,0.20090936,109550.0,109540.0,0.84721394]
[1749522040284,0.20090936,109550.0,109540.0,0.9157561]
[1749522041135,0.20090936,109550.0,109540.0,0.89869821]
[1749522041355,0.20090936,109550.0,109540.0,0.91576122]
[1749522041815,0.20090936,109550.0,109540.0,0.89869821]
[1749522042022,0.20090936,109550.0,109540.0,0.91576122]
[1749522042224,0.20090936,109550.0,109540.0,0.91576121]
[1749522043062,0.20090936,109550.0,109540.0,0.89869821]
[1749522043270,0.20090936,109550.0,109540.0,1.47048662]
[1749522043491,0.20090936,109550.0,109540.0,1.47048617]
[1749522044361,0.20090936,109550.0,109540.0,1.52504009]
[1749522044796,0.20090936,109550.0,109540.0,1.50796831]
[1749522045017,0.20090936,109550.0,109540.0,6.02033814]
[1749522045243,0.20090936,109550.0,109540.0,6.57505432]
[1749522046372,0.20090936,109550.0,109540.0,6.55796831]
[1749522046587,0.20090936,109550.0,109540.0,6.28285826]
[1749522046801,0.20090936,109550.0,109540.0,5.72814208]
[1749522047223,0.20090936,109550.0,109540.0,5.72814231]
[1749522047650,0.20090936,109550.0,109540.0,4.01174231]
[1749522047861,0.20090936,109550.0,109540.0,3.99465213]
[1749522048076,0.20090936,109550.0,109540.0,3.71406231]
[1749522048293,0.20090936,109550.0,109540.0,3.99385213]
[1749522048514,0.20090936,109550.0,109540.0,3.95756786]
[1749522048728,0.20090936,109550.0,109540.0,3.97465804]
[1749522049144,0.20090936,109550.0,109540.0,3.89035829]
[1749522049560,0.20090936,109550.0,109540.0,3.87326786]
[1749522049772,0.20090936,109550.0,109540.0,3.89036432]
[1749522051023,0.20090936,109550.0,109540.0,2.74446432]
[1749522051232,0.20090936,109550.0,109540.0,0.89608786]
[1749522051441,0.20090936,109550.0,109540.0,1.23090127]
[1749522051649,0.20090936,109550.0,109540.0,0.92080366]
[1749522051864,0.20090936,109550.0,109540.0,0.93790128]
[1749522052256,0.20090936,109550.0,109540.0,0.93790193]
[1749522052463,0.24317832,109550.0,109540.0,0.64146179]
[1749522052676,0.25897832,109550.0,109540.0,0.93794181]
[1749522052880,0.25897832,109550.0,109540.0,0.62436366]
[1749522053118,0.27467832,109550.0,109540.0,0.81939422]
[1749522053330,0.27467832,109550.0,109540.0,0.52291422]
[1749522053548,0.8293945,109550.0,109540.0,0.52291422]
[1749522053754,0.85217044,109550.0,109540.0,0.05957449]
[1749522054183,1.14877044,109550.0,109540.0,0.02309869]
[1749522054610,1.14877044,109550.0,109540.0,0.006]
[1749522054817,1.14877044,109550.0,109540.0,0.0231013]
[1749522055027,1.24449044,109550.0,109540.0,0.0231013]
[1749522055234,1.24449044,109550.0,109540.0,0.02309042]
[1749522055452,1.3362883,109550.0,109540.0,0.02309042]
[1749522056154,1.3362883,109550.0,109540.0,0.006]
[1749522056385,1.3362883,109550.0,109540.0,0.02309182]
[1749522056627,1.3362883,109550.0,109540.0,0.006]
[1749522056875,1.3362883,109550.0,109540.0,0.0230918]
[1749522057090,1.3362883,109550.0,109540.0,0.006]
[1749522060502,1.35082915,109550.0,109540.0,0.006]
[1749522061217,1.84372915,109550.0,109540.0,0.006]
[1749522061436,1.45140915,109550.0,109540.0,0.006]
[1749522061648,1.84356915,109550.0,109540.0,0.006]
[1749522064421,1.45140915,109550.0,109540.0,0.006]
[1749522064643,1.84320915,109550.0,109540.0,0.006]
[1749522064858,1.90323683,109550.0,109540.0,0.006]
[1749522065293,1.84320915,109550.0,109540.0,0.006]
[1749522065512,1.8289083,109550.0,109540.0,0.006]
[1749522065727,1.8289483,109550.0,109540.0,0.006]
[1749522065939,1.4368683,109550.0,109540.0,0.006]
[1749522066162,1.8289483,109550.0,109540.0,0.006]
[1749522066380,1.4368683,109550.0,109540.0,0.006]
[1749522066613,1.8289483,109550.0,109540.0,0.006]
[1749522066826,1.80617236,109550.0,109540.0,0.006]
[1749522067072,1.8289483,109550.0,109540.0,0.006]
[1749522067287,1.8288683,109550.0,109540.0,0.006]
[1749522067497,1.4368683,109550.0,109540.0,0.006]
[1749522067958,1.16673426,109550.0,109540.0,0.006]
[1749522068871,0.77465426,109550.0,109540.0,0.006]
[1749522069087,0.77465426,109550.0,109540.0,0.0230362]
[1749522069310,1.03239832,109550.0,109540.0,0.0230362]
[1749522069523,1.05517426,109550.0,109540.0,0.0230362]
[1749522069712,1.05517426,109550.0,109540.0,0.02303663]
[1749522069957,1.62509044,109550.0,109540.0,0.02303692]
[1749522070139,1.62509044,109550.0,109540.0,0.02303704]
[1749522070383,1.64129044,109550.0,109540.0,0.02303704]
[1749522070988,1.73697044,109550.0,109540.0,0.02303704]